bitfinex/quotes_BTCUSD_20251015
["timestamp","ask_amount","ask_price","bid_price","bid_amount"]
[1760486400840,0.14139144,113290.0,113250.0,0.12986712]
[1760486401473,0.14139144,113290.0,113260.0,0.01765848]
[1760486401688,0.14139144,113290.0,113260.0,0.06859332]
[1760486401908,0.14139144,113290.0,113260.0,0.04206418]
[1760486402122,0.14139144,113290.0,113260.0,0.05972266]
[1760486402744,0.06963934,113290.0,113260.0,0.06072266]
[1760486403142,0.06688014,113290.0,113260.0,0.06172266]
[1760486403357,0.00151361,113290.0,113260.0,0.06172266]
[1760486404762,0.02806607,113290.0,113260.0,0.76712266]
[1760486405072,0.02806607,113290.0,113260.0,0.74946418]
[1760486405324,0.02806607,113290.0,113270.0,0.01765692]
[1760486405540,0.02806607,113290.0,113280.0,0.17655367]
[1760486405749,0.00151361,113290.0,113280.0,0.44105367]
[1760486406858,0.00151361,113290.0,113280.0,0.44205367]
[1760486407502,0.00151361,113290.0,113280.0,0.44305367]
[1760486409033,0.00151361,113290.0,113280.0,0.47923595]
[1760486409243,0.00151361,113290.0,113280.0,0.22774524]
[1760486409620,0.00151361,113290.0,113280.0,0.19156296]
[1760486415242,0.00151361,113290.0,113280.0,0.45606296]
[1760486415458,0.00151361,113290.0,113280.0,0.17855367]
[1760486416078,0.02806553,113290.0,113280.0,0.17855367]
[1760486419739,0.20460361,113290.0,113280.0,0.002]
[1760486419975,0.20460361,113290.0,113280.0,0.17855367]
[1760486420966,0.17805169,113290.0,113280.0,0.17755367]
[1760486421536,0.00151361,113290.0,113280.0,0.17755367]
[1760486421745,0.01917219,113290.0,113280.0,0.17855367]
[1760486422145,0.19571027,113290.0,113280.0,0.17855367]
[1760486422315,0.17805169,113290.0,113280.0,0.17855367]
[1760486423334,0.17805169,113290.0,113280.0,0.002]
[1760486423631,0.17805169,113290.0,113280.0,0.17855367]
[1760486424021,0.17805169,113290.0,113280.0,0.002]
[1760486424225,0.19727571,113290.0,113280.0,0.002]
[1760486425179,0.23874514,113290.0,113280.0,0.002]
[1760486425378,0.19727571,113290.0,113280.0,0.002]
[1760486427184,0.19446979,113290.0,113280.0,0.002]
[1760486427643,0.19727545,113290.0,113280.0,0.002]
[1760486428310,0.19727545,113290.0,113280.0,0.001]
[1760486428716,5.00189708,113290.0,113280.0,0.001]
[1760486429656,0.17656925,113270.0,113260.0,0.18540963]
[1760486429857,0.19422783,113270.0,113260.0,0.22248913]
[1760486430060,0.03150275,113270.0,113260.0,0.22248913]
[1760486430263,0.03150275,113270.0,113260.0,0.21366434]
[1760486430442,0.01765858,113270.0,113260.0,0.21366434]
[1760486430986,0.19422783,113270.0,113260.0,0.21566434]
[1760486431816,0.01765858,113270.0,113260.0,0.21566434]
[1760486433547,0.03150305,113270.0,113260.0,0.21566434]
[1760486436964,0.2080723,113270.0,113260.0,0.002]
[1760486437167,0.19041372,113270.0,113260.0,0.17858484]
[1760486437376,0.01384447,113270.0,113260.0,0.17858484]
[1760486437695,0.2080723,113270.0,113260.0,0.17858484]
[1760486437870,0.19041372,113270.0,113260.0,0.2141027]
[1760486438478,0.01384447,113270.0,113260.0,0.2131027]
[1760486438731,0.2080723,113270.0,113260.0,0.2141027]
[1760486438911,0.01384447,113270.0,113260.0,0.2141027]
[1760486439123,0.01384447,113270.0,113260.0,0.2131027]
[1760486439360,0.19041372,113270.0,113260.0,0.2131027]
[1760486439513,0.19041372,113270.0,113260.0,0.2141027]
[1760486439891,0.01384447,113270.0,113260.0,0.2141027]
[1760486441122,0.2080723,113270.0,113260.0,0.2141027]
[1760486441317,0.19041372,113270.0,113260.0,0.2141027]
[1760486441522,0.19041372,113270.0,113260.0,0.002]
[1760486441722,0.19041372,113270.0,113260.0,0.17858484]
[1760486441942,0.19041372,113270.0,113260.0,0.002]
[1760486442375,0.19041372,113270.0,113260.0,0.17858484]
[1760486444192,0.19041372,113270.0,113260.0,0.002]
[1760486445310,0.21697549,113270.0,113260.0,0.002]
[1760486446125,0.55697549,113270.0,113260.0,0.17858484]
[1760486446356,0.55697549,113270.0,113260.0,0.2141027]
[1760486447093,0.55692147,113270.0,113260.0,0.2141027]
[1760486447892,0.55692147,113270.0,113260.0,0.03751786]
[1760486449332,0.57335953,113270.0,113260.0,0.03751786]
[1760486450082,0.55692147,113270.0,113260.0,0.03751786]
[1760486450299,0.57336137,113270.0,113260.0,0.03751786]
[1760486451548,0.57336137,113270.0,113260.0,0.2141027]
[1760486451756,0.57336326,113270.0,113260.0,0.2141027]
[1760486452201,0.55692147,113270.0,113260.0,0.2141027]
[1760486454322,0.57337166,113270.0,113260.0,0.2141027]
[1760486456215,0.39680241,113270.0,113260.0,0.2141027]
[1760486456423,0.35379045,113270.0,113260.0,0.2141027]
[1760486456784,0.01379045,113270.0,113260.0,0.2141027]
[1760486457167,0.00057096,113300.0,113290.0,0.17653808]
[1760486457168,0.01822954,113300.0,113290.0,0.17653808]
[1760486457344,0.54859518,113300.0,113290.0,0.17653808]
[1760486457572,0.5309366,113300.0,113290.0,0.17653808]
[1760486457765,0.54738471,113300.0,113290.0,0.17653808]
[1760486457994,0.54738471,113300.0,113290.0,0.18842964]
[1760486458170,0.54738471,113300.0,113290.0,0.17653808]
[1760486458371,0.1909366,113300.0,113290.0,0.17653808]
[1760486458733,0.5309366,113300.0,113290.0,0.17653808]
[1760486458933,0.51653808,113290.0,113260.0,0.18741408]
[1760486459160,0.01765858,113280.0,113270.0,0.17656711]
[1760486459883,0.03150163,113280.0,113270.0,0.17656711]
[1760486460076,0.2080553,113280.0,113270.0,0.17656711]
[1760486460255,0.19039672,113280.0,113270.0,0.17656711]
[1760486460464,0.01384305,113280.0,113270.0,0.17656711]
[1760486460660,0.2080553,113280.0,113270.0,0.17656925]
[1760486460820,0.19039672,113280.0,113270.0,0.17656925]
[1760486461035,0.54309433,113290.0,113270.0,0.17656925]
[1760486461240,0.01765858,113280.0,113270.0,0.17656925]
[1760486461505,0.01765858,113280.0,113270.0,0.17756925]
[1760486461708,0.01765858,113280.0,113270.0,0.21486758]
[1760486461927,0.01765858,113280.0,113270.0,0.21386758]
[1760486462128,0.01765858,113280.0,113270.0,0.21286758]
[1760486462556,0.01765858,113280.0,113270.0,0.21386758]
[1760486462760,0.01765858,113280.0,113270.0,0.21486758]
[1760486463790,0.53421225,113280.0,113270.0,0.002]
[1760486463995,0.51655367,113280.0,113270.0,0.002]
[1760486464122,0.54311351,113280.0,113270.0,0.002]
[1760486465150,5.36847251,113280.0,113270.0,0.002]
[1760486465356,5.38231695,113280.0,113270.0,0.001]
[1760486465577,0.17656925,113270.0,113260.0,0.17658288]
[1760486465760,0.19422783,113270.0,113260.0,0.17658288]
[1760486466389,0.34,113260.0,113250.0,0.18542483]
[1760486466931,0.34,113260.0,113250.0,0.18751002]
[1760486467461,0.34,113260.0,113250.0,0.18800806]
[1760486468464,0.34,113260.0,113250.0,0.18900806]
[1760486468659,0.34,113260.0,113250.0,0.19000806]
[1760486468932,0.34,113260.0,113250.0,0.22754775]
[1760486469890,0.34,113260.0,113250.0,0.49204775]
[1760486470914,0.3538449,113260.0,113250.0,0.49204775]
[1760486472482,0.53042974,113260.0,113250.0,0.26908323]
[1760486472697,0.53042974,113260.0,113250.0,0.44568367]
[1760486472887,0.53042974,113260.0,113250.0,0.18118367]
[1760486477834,0.53042974,113260.0,113250.0,0.00458323]
[1760486478246,5.35578874,113260.0,113250.0,0.00458323]
[1760486478537,5.3823527,113260.0,113250.0,0.00458323]
[1760486480779,5.3685078,113260.0,113250.0,0.00458323]
[1760486481287,0.5431488,113260.0,113250.0,0.00458323]
[1760486483689,0.5569947,113260.0,113250.0,0.00458323]
[1760486485814,5.3823537,113260.0,113250.0,0.00458323]
[1760486486780,5.3823537,113260.0,113250.0,0.00370046]
[1760486489749,0.38040986,113260.0,113250.0,0.00370046]
[1760486490001,0.18538135,113280.0,113270.0,0.17656925]
[1760486490213,0.19297569,113280.0,113260.0,0.17657074]
[1760486490392,0.3842192,113270.0,113260.0,0.21302066]
[1760486490626,0.36656062,113270.0,113260.0,0.21213813]
[1760486490842,0.02656062,113270.0,113260.0,0.21213813]
[1760486491050,0.0717521,113290.0,113280.0,0.17655367]
[1760486491281,0.62237246,113290.0,113280.0,0.18751317]
[1760486491503,0.60471388,113290.0,113280.0,0.0109595]
[1760486491719,0.55951843,113290.0,113280.0,0.17655367]
[1760486491903,0.54309473,113290.0,113280.0,0.17655367]
[1760486492101,0.54309473,113290.0,113270.0,0.17655521]
[1760486492348,0.19421225,113280.0,113270.0,0.17655521]
[1760486492558,0.01765858,113280.0,113270.0,0.17655521]
[1760486492978,0.01765858,113280.0,113270.0,0.21276248]
[1760486493409,0.03150269,113280.0,113270.0,0.21276248]
[1760486494061,4.825359,113280.0,113270.0,0.21276248]
[1760486495266,4.85191569,113280.0,113270.0,0.21276248]
[1760486495477,0.02655669,113280.0,113270.0,0.21276248]
[1760486499125,0.02660069,113280.0,113270.0,0.21276248]
[1760486499337,0.02655669,113280.0,113270.0,0.21276248]
[1760486499517,0.47576625,113290.0,113280.0,0.17655367]
[1760486499947,0.50232294,113290.0,113280.0,0.17655367]
[1760486500801,0.50232294,113290.0,113280.0,0.18775582]
[1760486501008,0.50232294,113290.0,113280.0,0.17655367]
[1760486503301,0.50232294,113290.0,113270.0,0.17655521]
[1760486505326,0.50232294,113290.0,113270.0,0.17567244]
[1760486507717,0.50232294,113290.0,113280.0,0.17655367]
[1760486508148,0.20309477,113290.0,113280.0,0.17655367]
[1760486508359,0.20309477,113290.0,113280.0,0.21177628]
[1760486508562,0.20309477,113290.0,113280.0,0.21089375]
[1760486509474,0.20309477,113290.0,113280.0,0.03522261]
[1760486509683,0.20309477,113290.0,113270.0,0.17567244]
[1760486511682,0.17655367,113280.0,113270.0,0.17567244]
[1760486512716,0.34,113280.0,113270.0,0.17567244]
[1760486512947,0.34,113280.0,113270.0,0.17667244]
[1760486513366,0.34,113280.0,113270.0,0.17767244]
[1760486513585,0.34,113280.0,113270.0,0.21395454]
[1760486514468,0.51655367,113280.0,113270.0,0.002]
[1760486514691,0.51655367,113280.0,113270.0,0.17856925]
[1760486514894,0.55695695,113280.0,113270.0,0.17856925]
[1760486516742,0.38040328,113280.0,113270.0,0.17856925]
[1760486516948,0.55695695,113280.0,113270.0,0.17856925]
[1760486517097,0.55695695,113280.0,113270.0,0.21494103]
[1760486518943,0.38040328,113280.0,113270.0,0.21494103]
[1760486519144,0.01384426,113280.0,113270.0,0.21494103]
[1760486519368,0.34,113290.0,113280.0,0.17655367]
[1760486519691,0.36655538,113290.0,113280.0,0.17655367]
[1760486519860,0.36655538,113290.0,113280.0,0.18759131]
[1760486520273,0.38301772,113290.0,113280.0,0.18759131]
[1760486520474,0.5595558,113290.0,113280.0,0.18759131]
[1760486520674,0.17655367,113280.0,113270.0,0.001]
[1760486520890,0.54309346,113290.0,113270.0,0.17656925]
[1760486521084,0.00064213,113280.0,113270.0,0.17656925]
[1760486521923,0.0271999,113280.0,113270.0,0.17656925]
[1760486522716,0.0271999,113280.0,113270.0,0.17756925]
[1760486522944,0.0271999,113280.0,113270.0,0.21484103]
[1760486523279,0.0271999,113280.0,113270.0,0.21366656]
[1760486524103,0.20375357,113280.0,113270.0,0.21484103]
[1760486528528,4.825359,113280.0,113270.0,0.21484103]
[1760486528726,0.17655367,113280.0,113270.0,0.21484103]
[1760486529176,0.17655367,113280.0,113270.0,0.002]
[1760486529410,0.19302289,113280.0,113270.0,0.002]
[1760486529858,0.21958191,113280.0,113270.0,0.002]
[1760486530009,0.21958191,113280.0,113270.0,0.17856925]
[1760486530713,0.55958191,113280.0,113270.0,0.17856925]
[1760486530917,0.55958191,113280.0,113270.0,0.002]
[1760486533271,5.38494091,113280.0,113270.0,0.002]
[1760486535966,5.38494091,113280.0,113270.0,0.17856925]
[1760486536912,5.39878567,113280.0,113270.0,0.17856925]
[1760486541826,5.39878567,113280.0,113270.0,0.17768648]
[1760486542716,5.39878567,113280.0,113270.0,0.00111723]
[1760486543146,5.38231645,113280.0,113270.0,0.00111723]
[1760486543278,5.39877052,113280.0,113270.0,0.00111723]
[1760486543681,5.39877052,113280.0,113270.0,0.17768648]
[1760486544076,5.39877052,113280.0,113270.0,0.00111723]
[1760486544756,0.57341152,113280.0,113270.0,0.00111723]
[1760486544964,5.39877052,113280.0,113270.0,0.00111723]
[1760486547640,0.57341152,113280.0,113270.0,0.00111723]
[1760486547851,5.39877052,113280.0,113270.0,0.00111723]
[1760486548029,0.57341152,113280.0,113270.0,0.00111723]
[1760486548455,5.39877052,113280.0,113270.0,0.00111723]
[1760486548818,5.4884526,113280.0,113270.0,0.00111723]
[1760486549001,5.4884526,113280.0,113260.0,0.00063108]
[1760486549002,1.50129125,113270.0,113260.0,0.00063108]
[1760486549651,2.00129125,113270.0,113260.0,0.00063108]
[1760486549853,2.02785526,113270.0,113260.0,0.00063108]
[1760486550233,2.02785526,113270.0,113260.0,0.00163108]
[1760486551183,2.04430126,113270.0,113260.0,0.00263108]
[1760486553067,2.05814795,113270.0,113260.0,0.00263108]
[1760486553516,2.0581421,113270.0,113260.0,0.00263108]
[1760486558105,2.09432438,113270.0,113260.0,0.00263108]
[1760486558692,1.13406683,113270.0,113260.0,0.00263108]
[1760486558896,5.95389114,113270.0,113260.0,0.00263108]
[1760486559327,1.12853214,113270.0,113260.0,0.00263108]
[1760486559444,5.95389114,113270.0,113260.0,0.00263108]
[1760486559644,6.04356359,113270.0,113260.0,0.00263108]
[1760486559855,5.95388151,113270.0,113260.0,0.00174831]
[1760486560751,5.9620955,113270.0,113260.0,0.00174831]
[1760486561608,1.1367365,113270.0,113260.0,0.00174831]
[1760486561930,5.97270591,113270.0,113260.0,0.00174831]
[1760486562473,5.94824146,113270.0,113260.0,0.00086554]
[1760486563084,6.03792354,113270.0,113260.0,0.00086554]
[1760486563515,5.94824146,113270.0,113260.0,0.00086554]
[1760486563735,1.12288246,113270.0,113260.0,0.00086554]
[1760486563915,5.94824146,113270.0,113260.0,0.00086554]
[1760486564711,5.96208955,113270.0,113260.0,0.00086554]
[1760486565138,5.986554,113270.0,113260.0,0.00086554]
[1760486565604,6.00503409,113270.0,113260.0,0.00086554]
[1760486566185,1.17967509,113270.0,113260.0,0.00086554]
[1760486566336,6.00503409,113270.0,113260.0,0.00086554]
[1760486566977,6.00502743,113270.0,113260.0,0.00086554]
[1760486569109,1.17966843,113270.0,113260.0,0.00086554]
[1760486569316,6.00502743,113270.0,113260.0,0.00086554]
[1760486570401,0.51658484,113260.0,113250.0,0.00049804]
[1760486570580,5.46697885,113260.0,113250.0,0.00049804]
[1760486570848,0.64161985,113260.0,113250.0,0.00049804]
[1760486571049,5.46697885,113260.0,113250.0,0.00106935]
[1760486571238,5.49355102,113260.0,113250.0,0.00106935]
[1760486571448,5.51801547,113260.0,113250.0,0.00106935]
[1760486571661,5.51801547,113260.0,113250.0,0.00206935]
[1760486571855,5.96083816,113260.0,113250.0,0.00100001]
[1760486572092,5.96912836,113260.0,113250.0,0.00100001]
[1760486572484,1.14376936,113260.0,113250.0,0.00100001]
[1760486572681,5.99278137,113260.0,113250.0,1e-08]
[1760486573666,5.34199063,113230.0,113220.0,0.0002]
[1760486573865,5.35842115,113230.0,113220.0,0.00024995]
[1760486574069,5.37227239,113230.0,113220.0,0.00024995]
[1760486574269,5.39884746,113230.0,113220.0,0.00024995]
[1760486574953,5.39884746,113230.0,113220.0,0.00124995]
[1760486575772,5.89884746,113230.0,113220.0,0.00124995]
[1760486577898,0.17666283,113210.0,113200.0,0.18517338]
[1760486578106,0.17666283,113210.0,113200.0,0.18532324]
[1760486578732,0.19051484,113210.0,113200.0,0.18522324]
[1760486579098,0.19051484,113210.0,113200.0,0.18622324]
[1760486579686,0.53051484,113210.0,113200.0,0.18622324]
[1760486579929,0.53051484,113210.0,113200.0,0.04718246]
[1760486580093,0.53051484,113210.0,113200.0,0.2248609]
[1760486580295,1.03051484,113210.0,113200.0,0.2248609]
[1760486580531,1.03051484,113210.0,113200.0,0.22397813]
[1760486581126,1.01666283,113210.0,113200.0,0.22397813]
[1760486581768,0.84,113210.0,113200.0,0.22397813]
[1760486582254,0.5,113210.0,113200.0,0.22397813]
[1760486584079,0.49999941,113210.0,113200.0,0.22397813]
[1760486584485,0.49999941,113210.0,113200.0,0.22683605]
[1760486588271,0.56588511,113230.0,113220.0,0.17664723]
[1760486588445,0.58230891,113230.0,113220.0,0.18685797]
[1760486589615,0.58230891,113230.0,113220.0,0.18785797]
[1760486590663,0.3968455,113230.0,113220.0,0.18785797]
[1760486590864,0.35385106,113230.0,113220.0,0.18785797]
[1760486591064,0.17658595,113260.0,113250.0,0.17660044]
[1760486591240,0.02464658,113260.0,113250.0,0.17660044]
[1760486591445,0.5595815,113260.0,113250.0,0.21192106]
[1760486592257,0.2205815,113260.0,113250.0,0.21192106]
[1760486592463,0.2195815,113260.0,113250.0,0.21192106]
[1760486592658,0.5605815,113260.0,113250.0,0.21192106]
[1760486593047,0.5595815,113260.0,113250.0,0.21192106]
[1760486596400,0.5595815,113260.0,113250.0,0.03532062]
[1760486596639,0.34,113250.0,113240.0,0.17660577]
[1760486596882,0.34,113250.0,113240.0,0.19498861]
[1760486597063,0.34,113250.0,113240.0,0.17732701]
[1760486597530,0.35384797,113250.0,113240.0,0.17732701]
[1760486598101,0.35384797,113250.0,113240.0,0.17832701]
[1760486598298,0.35384797,113250.0,113240.0,0.21470375]
[1760486598900,0.35384797,113250.0,113240.0,0.21570375]
[1760486602468,0.53044841,113250.0,113240.0,0.21570375]
[1760486602670,0.35384797,113250.0,113240.0,0.21570375]
[1760486604266,0.53044841,113250.0,113240.0,0.21570375]
[1760486606096,0.53044841,113250.0,113240.0,0.03909798]
[1760486606306,0.53044841,113250.0,113240.0,0.21571401]
[1760486606515,0.53044841,113250.0,113240.0,0.00272124]
[1760486606713,5.35580741,113250.0,113240.0,0.00272124]
[1760486607829,5.35580741,113250.0,113240.0,0.00172124]
[1760486608035,5.35580741,113250.0,113240.0,0.00072124]
[1760486609905,5.34195944,113250.0,113240.0,0.00072124]
[1760486610277,5.35837032,113250.0,113240.0,0.00072124]
[1760486611261,0.53386796,113250.0,113240.0,0.00072124]
[1760486611402,5.39540924,113250.0,113240.0,0.00072124]
[1760486611600,5.42808034,113250.0,113240.0,0.00072124]
[1760486611954,5.43444555,113250.0,113240.0,0.00072124]
[1760486612306,0.60908655,113250.0,113240.0,0.00072124]
[1760486612513,5.43444555,113250.0,113240.0,0.00072124]
[1760486612748,5.44107442,113250.0,113240.0,0.00072124]
[1760486613274,5.41660997,113250.0,113240.0,0.00072124]
[1760486613597,0.59125097,113250.0,113240.0,0.00072124]
[1760486613790,5.41660997,113250.0,113240.0,0.00072124]
[1760486613989,0.59225097,113250.0,113240.0,0.00072124]
[1760486614222,5.41760997,113250.0,113240.0,0.00072124]
[1760486614620,5.41860997,113250.0,113240.0,0.00072124]
[1760486614894,5.4375185,113250.0,113240.0,0.00072124]
[1760486615130,0.6121595,113250.0,113240.0,0.00072124]
[1760486615330,0.3722616,113250.0,113240.0,0.00072124]
[1760486615545,0.53501132,113250.0,113240.0,0.17733727]
[1760486615758,0.002,113250.0,113240.0,0.21273403]
[1760486615960,0.17860044,113250.0,113240.0,0.21273403]
[1760486616167,0.51860044,113250.0,113240.0,0.21273403]
[1760486616376,0.17860044,113250.0,113240.0,0.21273403]
[1760486616585,0.17760044,113250.0,113240.0,0.21185126]
[1760486616787,0.51760044,113250.0,113240.0,0.21185126]
[1760486617130,0.53144914,113250.0,113240.0,0.03523523]
[1760486617335,0.17661603,113240.0,113210.0,0.18549574]
[1760486617543,0.17661603,113240.0,113220.0,0.19431106]
[1760486617544,0.34,113230.0,113220.0,0.19431106]
[1760486618388,0.35384997,113230.0,113220.0,0.19431106]
[1760486618599,0.01384997,113230.0,113220.0,0.19431106]
[1760486618819,0.01384997,113230.0,113220.0,0.23229174]
[1760486619020,0.01384997,113230.0,113220.0,0.21462702]
[1760486620924,0.01384997,113230.0,113220.0,0.21662702]
[1760486622892,0.51661606,113240.0,113230.0,0.17663163]
[1760486623787,0.53928096,113250.0,113230.0,0.17663163]
[1760486623997,4.825359,113240.0,113230.0,0.18589884]
[1760486624218,0.53943029,113250.0,113230.0,0.18589884]
[1760486624446,4.588578,113240.0,113230.0,0.18589884]
[1760486624893,0.17661603,113240.0,113230.0,0.18589884]
[1760486625166,4.76519403,113240.0,113230.0,0.18589884]
[1760486625394,0.17661603,113240.0,113230.0,0.18589884]
[1760486625909,4.588578,113240.0,113230.0,0.18589884]
[1760486626413,0.53943029,113250.0,113240.0,0.17661603]
[1760486626638,0.17661603,113240.0,113230.0,0.17663163]
[1760486626868,0.53943029,113250.0,113230.0,0.17663163]
[1760486627072,0.17661603,113240.0,113230.0,0.17663163]
[1760486628087,0.53943029,113250.0,113230.0,0.17663163]
[1760486628324,4.588578,113240.0,113230.0,0.21284266]
[1760486629727,4.76519403,113240.0,113230.0,0.21284266]
[1760486629866,0.17661603,113240.0,113230.0,0.21284266]
[1760486630735,4.588578,113240.0,113230.0,0.21284266]
[1760486631123,0.53943029,113250.0,113230.0,0.21284266]
[1760486631540,0.17661603,113240.0,113230.0,0.21284266]
[1760486632161,0.17661603,113240.0,113230.0,0.03621103]
[1760486632366,0.51663163,113230.0,113210.0,0.18549574]
[1760486632573,0.51663163,113230.0,113220.0,0.17664723]
[1760486632771,0.51663163,113230.0,113220.0,0.17779025]
[1760486633013,0.53048158,113230.0,113220.0,0.17779025]
[1760486633970,0.53048158,113230.0,113220.0,0.00114302]
[1760486634482,0.51663163,113230.0,113220.0,0.17690748]
[1760486634678,0.51663163,113230.0,113220.0,0.2131478]
[1760486635423,0.51663163,113230.0,113220.0,0.03650057]
[1760486635779,0.51663163,113230.0,113220.0,0.2131478]
[1760486636291,0.51663163,113230.0,113220.0,0.03650057]
[1760486636495,0.51663163,113230.0,113220.0,0.2131478]
[1760486637110,0.34,113230.0,113220.0,0.2131478]
[1760486637313,0.36657104,113240.0,113230.0,0.17663163]
[1760486637522,0.20691067,113240.0,113230.0,0.1876392]
[1760486637730,0.01384999,113240.0,113230.0,0.1876392]
[1760486637932,0.35384999,113240.0,113230.0,0.1876392]
[1760486638376,0.53046602,113240.0,113230.0,0.1876392]
[1760486638668,0.35384999,113240.0,113230.0,0.1876392]
[1760486640005,0.18548733,113230.0,113200.0,0.18551036]
[1760486640311,0.51664723,113220.0,113210.0,0.17666283]
[1760486640502,0.34,113210.0,113200.0,0.18551036]
[1760486641654,0.17664723,113220.0,113210.0,0.17666283]
[1760486642728,0.17664723,113220.0,113200.0,0.18551036]
[1760486642930,0.17664723,113220.0,113210.0,0.17666283]
[1760486644409,0.19049844,113220.0,113210.0,0.17666283]
[1760486645420,0.01385121,113220.0,113210.0,0.17666283]
[1760486645797,0.01385121,113220.0,113210.0,0.19432911]
[1760486647034,0.01385121,113220.0,113210.0,0.19532911]
[1760486647244,0.35385121,113220.0,113210.0,0.18878329]
[1760486647449,0.35385121,113220.0,113210.0,0.20644957]
[1760486648073,0.01385121,113220.0,113210.0,0.20728144]
[1760486648210,0.01385121,113220.0,113210.0,0.18961516]
[1760486649450,0.35385121,113220.0,113210.0,0.18961516]
[1760486651170,0.53049844,113220.0,113210.0,0.1794947]
[1760486651375,0.35385121,113220.0,113210.0,0.1794947]
[1760486651589,0.53049844,113220.0,113210.0,0.1794947]
[1760486652058,0.53049844,113220.0,113210.0,0.1784947]
[1760486652407,0.53049844,113220.0,113210.0,0.17755792]
[1760486652616,0.53049844,113220.0,113210.0,0.21380153]
[1760486653943,0.53049844,113220.0,113210.0,0.0371387]
[1760486654373,0.53049844,113220.0,113210.0,0.00083187]
[1760486655199,5.11907644,113220.0,113210.0,0.00083187]
[1760486655990,5.14565137,113220.0,113210.0,0.00083187]
[1760486657994,5.14565137,113220.0,113210.0,0.1774947]
[1760486658212,4.96900414,113220.0,113210.0,0.1774947]
[1760486658425,0.53049844,113220.0,113210.0,0.21291186]
[1760486661183,0.35385121,113220.0,113210.0,0.21291186]
[1760486661417,0.01385121,113220.0,113210.0,0.21291186]
[1760486661619,0.51663198,113230.0,113220.0,0.17664723]
[1760486661845,0.34,113230.0,113220.0,0.18847796]
[1760486662047,0.51663163,113230.0,113220.0,0.18847796]
[1760486662467,0.34,113230.0,113220.0,0.18847796]
[1760486663961,0.51663163,113230.0,113220.0,0.18847796]
[1760486664162,0.34,113230.0,113220.0,0.18847796]
[1760486664602,0.51663163,113230.0,113220.0,0.18847796]
[1760486664820,0.53048194,113230.0,113220.0,0.18847796]
[1760486665264,0.35385031,113230.0,113220.0,0.18847796]
[1760486665756,0.51665856,113220.0,113190.0,0.18576391]
[1760486665986,0.34,113220.0,113210.0,0.17666283]
[1760486666202,0.51664723,113220.0,113210.0,0.17666283]
[1760486666435,0.51664723,113220.0,113210.0,0.21199693]
[1760486667932,0.54322081,113220.0,113210.0,0.21199693]
[1760486668375,0.54322081,113220.0,113210.0,0.2128288]
[1760486670544,0.54322081,113220.0,113210.0,0.0352832]
[1760486670766,5.13179881,113220.0,113210.0,0.0352832]
[1760486671574,5.13179881,113220.0,113210.0,0.00083187]
[1760486672566,5.13179881,113220.0,113210.0,0.1774947]
[1760486674379,0.20322081,113220.0,113210.0,0.1774947]
[1760486674836,0.20322081,113220.0,113210.0,0.00083187]
[1760486676735,0.20322081,113220.0,113210.0,0.1774947]
[1760486676958,0.20322081,113220.0,113210.0,0.21291199]
[1760486677810,0.20322081,113220.0,113210.0,0.00083187]
[1760486678926,0.20322081,113220.0,113210.0,0.1774947]
[1760486679496,0.54322081,113220.0,113210.0,0.1774947]
[1760486680087,0.54322081,113220.0,113210.0,0.00083187]
[1760486682047,0.02657358,113220.0,113210.0,0.1774947]
[1760486682304,0.17663163,113230.0,113220.0,0.17664723]
[1760486682487,0.02657219,113230.0,113220.0,0.17664723]
[1760486682705,0.20320382,113230.0,113220.0,0.17664723]
[1760486684061,0.51664723,113220.0,113210.0,0.21308012]
[1760486685188,0.53049851,113220.0,113210.0,0.21208012]
[1760486685781,0.53049851,113220.0,113210.0,0.21308012]
[1760486685983,0.53049851,113220.0,113210.0,0.21408012]
[1760486686423,0.53049851,113220.0,113210.0,0.17866283]
[1760486686611,0.53049851,113220.0,113210.0,0.002]
[1760486687266,0.53049851,113220.0,113210.0,0.17866283]
[1760486687676,0.53049851,113220.0,113210.0,0.001]
[1760486688124,0.53049851,113220.0,113210.0,0.17766283]
[1760486688619,0.53049851,113220.0,113210.0,0.21209755]
[1760486688839,0.53049851,113220.0,113210.0,0.21298032]
[1760486689474,0.53049851,113220.0,113210.0,0.03631749]
[1760486689901,0.53049851,113220.0,113210.0,0.21298032]
[1760486690108,0.53049851,113220.0,113210.0,0.03631749]
[1760486690331,0.53049851,113220.0,113210.0,0.21298032]
[1760486690772,0.53049851,113220.0,113210.0,0.03631749]
[1760486691728,0.53049851,113220.0,113200.0,0.18551212]
[1760486692351,0.55707311,113220.0,113210.0,0.17666283]
[1760486692558,0.55707311,113220.0,113200.0,0.18551212]
[1760486693198,0.55707311,113220.0,113210.0,0.00083187]
[1760486693814,0.55707311,113220.0,113210.0,0.1774947]
[1760486694433,0.55707311,113220.0,113210.0,0.21379538]
[1760486696497,0.55707311,113220.0,113210.0,0.03713255]
[1760486696639,0.55707311,113220.0,113210.0,0.21379538]
[1760486696855,0.55707311,113220.0,113210.0,0.03713255]
[1760486697228,0.57353057,113220.0,113210.0,0.00083187]
[1760486697433,0.57353057,113220.0,113210.0,0.1774947]
[1760486697616,0.57353057,113220.0,113210.0,0.00083187]
[1760486697995,0.57353057,113220.0,113210.0,0.1774947]
[1760486698407,0.57353057,113220.0,113210.0,0.00083187]
[1760486698606,0.57353057,113220.0,113210.0,0.1774947]
[1760486698811,0.57353057,113220.0,113210.0,0.00083187]
[1760486701185,0.57353057,113220.0,113210.0,0.1774947]
[1760486701520,0.57353057,113220.0,113210.0,0.03713255]
[1760486701921,0.57353057,113220.0,113210.0,0.21379538]
[1760486702714,0.01385128,113220.0,113210.0,0.21379538]
[1760486702925,4.588578,113240.0,113230.0,0.17661917]
[1760486703128,0.55963541,113240.0,113230.0,0.17661917]
[1760486703346,0.55963541,113240.0,113230.0,0.18669607]
[1760486703717,0.54318568,113240.0,113230.0,0.18669607]
[1760486703887,0.36656965,113240.0,113230.0,0.18669607]
[1760486704084,4.977e-05,113240.0,113230.0,0.18669607]
[1760486705336,4.977e-05,113240.0,113230.0,0.22287835]
[1760486705503,4.977e-05,113240.0,113230.0,0.33391835]
[1760486705953,4.977e-05,113240.0,113230.0,0.33491835]
[1760486706362,4.977e-05,113240.0,113230.0,0.33591835]
[1760486706593,4.977e-05,113240.0,113230.0,0.36090834]
[1760486706721,0.09831032,113290.0,113280.0,0.17655367]
[1760486706722,0.0717521,113290.0,113280.0,0.17655367]
[1760486706946,0.07225208,113290.0,113280.0,0.22951993]
[1760486707146,0.07225208,113290.0,113280.0,0.21186457]
[1760486707357,0.19088151,113290.0,113280.0,0.21186457]
[1760486707511,0.01434343,113290.0,113280.0,0.21186457]
[1760486707969,0.01434343,113290.0,113280.0,0.21286457]
[1760486708146,0.01434343,113290.0,113280.0,0.21386457]
[1760486708346,0.01434343,113290.0,113280.0,0.21286457]
[1760486708772,0.01434343,113290.0,113280.0,0.21386457]
[1760486710294,0.00049998,113290.0,113280.0,0.21386457]
[1760486712495,0.17703806,113290.0,113280.0,0.21386457]
[1760486712688,0.00049998,113290.0,113280.0,0.21386457]
[1760486713832,0.00278444,113290.0,113280.0,0.21386457]